fUSD/lending_fUSD_20260420
["ID","MTS","AMOUNT","RATE_DAILY","PERIOD"]
[420847884,1776631844279,-258.62516557,0.00011581,2]
[420847885,1776631844288,-209.40437684,0.00011581,2]
[420847886,1776631844298,-1600.0,0.00011596,2]
[420847887,1776631844307,-2854.769,0.00011603,2]
[420847888,1776631844316,-300.0,0.00011625,2]
[420847889,1776631844326,-300.0,0.00011625,2]
[420847890,1776631844335,-3403.6,0.00011626,2]
[420847891,1776631844344,-19921.57,0.00011626,2]
[420847892,1776631844354,-58283.85,0.00011626,2]
[420847893,1776631844363,-2296.98,0.00011626,2]
[420847894,1776631844373,-151.0,0.00011626,2]
[420847895,1776631844382,-599.56212656,0.00011635,2]
[420847896,1776631844391,-151.0,0.0001164,3]
[420847897,1776631844401,-200.0,0.00011644,2]
[420847898,1776631844411,-166.66,0.00011668,2]
[420847899,1776631844420,-284.37357065,0.00011709,2]
[420847900,1776631844429,-156.80190186,0.00011739,2]
[420847901,1776631844438,-281.668028,0.0001175,2]
[420847902,1776631844447,-16889.0088501,0.00011756,2]
[420847903,1776631844459,-1500.0,0.00011768,2]
[420847904,1776631844468,-1630.66124612,0.00011768,2]
[420847905,1776631844477,-2000.0,0.00011816,2]
[420847906,1776631844486,-2000.0,0.00011816,2]
[420847907,1776631844496,-1143.97,0.00011818,2]
[420847908,1776631844505,-792.9861,0.0001184,2]
[420847909,1776631844515,-792.9861,0.0001184,2]
[420847910,1776631844524,-792.9861,0.0001184,2]
[420847911,1776631844533,-792.9861,0.0001184,2]
[420847912,1776631844543,-792.9861,0.0001184,2]
[420847913,1776631844553,-792.9861,0.0001184,2]
[420847914,1776631844562,-151.0,0.00011854,2]
[420847915,1776631844571,-5500.0,0.000119,4]
[420847916,1776631844581,-159.12,0.00011933,2]
[420847917,1776631844591,-587.0,0.00011951,2]
[420847918,1776631844600,-2351.0,0.00011951,2]
[420847919,1776631844609,-151.0,0.00011957,2]
[420847920,1776631844619,-1000.0,0.00011957,2]
[420847921,1776631844628,-500.0,0.0001197,2]
[420847922,1776631844638,-500.0,0.0001197,2]
[420847923,1776631844650,-670.55282372,0.0001197,2]
[420847924,1776631844659,-1000.0,0.0001197,2]
[420847925,1776631844668,-1000.0,0.0001197,2]
[420847926,1776631844678,-1000.0,0.0001197,2]
[420847927,1776631844687,-290.1,0.00011985,2]
[420847928,1776631844697,-478.39132334,0.00012,2]
[420847929,1776631844706,-200.0,0.00012,2]
[420847930,1776631844715,-600.0,0.00012018,2]
[420847931,1776631844724,-273.29,0.00012018,2]
[420847932,1776631844734,-166.66,0.00012019,2]
[420847933,1776631844743,-300.0,0.00012054,2]
[420847934,1776631844752,-53051.15,0.00012055,2]
[420847935,1776631844762,-433.0,0.00012072,2]
[420847936,1776631844771,-1144.0,0.00012092,2]
[420847937,1776631844780,-300.0,0.00012109,2]
[420847938,1776631844789,-300.0,0.00012109,2]
[420847939,1776631844799,-58811.7610273,0.0001211,2]
[420847940,1776631844809,-217.15233878,0.00012129,2]
[420847941,1776631844818,-1481.23780761,0.00012129,2]
[420847942,1776631844827,-829.12830338,0.00012129,2]
[420847943,1776631844837,-217.15233878,0.00012129,2]
[420847944,1776631844847,-217.15233878,0.00012129,2]
[420847945,1776631844856,-200.0,0.00012192,2]
[420847946,1776631844865,-1268.0,0.00012292,3]
[420847947,1776631844875,-2000.0,0.00012316,2]
[420847948,1776631844884,-44764.5547001,0.00012322,2]
[420847949,1776631844894,-7498.5536872,0.00012356,2]
[420847950,1776631844903,-1237.45189709,0.00012364,2]
[420847951,1776631844912,-2500.0,0.00012364,2]
[420847952,1776631844922,-166.66,0.00012369,2]
[420847953,1776631844931,-5401.102597,0.00012381,2]
[420847954,1776631844941,-200.0,0.00012384,2]
[420847955,1776631844951,-200.0,0.00012385,2]
[420847956,1776631844962,-2000.0,0.0001247,2]
[420847957,1776631844971,-1000.0,0.00012485,2]
[420847958,1776631844981,-1000.0,0.00012485,2]
[420847959,1776631844991,-1000.0,0.00012485,2]
[420847960,1776631845000,-1000.0,0.00012485,2]
[420847961,1776631845010,-1000.0,0.00012485,2]
[420847962,1776631845020,-435.28,0.00012485,2]
[420847963,1776631845030,-858.892612,0.00012508,2]
[420847964,1776631845039,-292.17103,0.00012508,2]
[420847965,1776631845049,-980.626858,0.00012508,2]
[420847966,1776631845058,-159.12,0.00012596,2]
[420847967,1776631845068,-18505.56,0.00012615,2]
[420847968,1776631845078,-300.0,0.00012667,2]
[420847969,1776631845087,-300.0,0.00012667,2]
[420847970,1776631845097,-58811.7610273,0.00012668,2]
[420847971,1776631845106,-500.0,0.0001267,2]
[420847972,1776631845116,-1000.0,0.0001267,2]
[420847973,1776631845125,-308.31333839,0.00012677,2]
[420847974,1776631845135,-1536.04360649,0.00012677,2]
[420847975,1776631845145,-225.18697532,0.00012677,2]
[420847976,1776631845154,-859.80605061,0.00012677,2]
[420847977,1776631845164,-218.84863631,0.00012677,2]
[420847978,1776631845174,-385.4715324,0.00012739,2]
[420847979,1776631845184,-200.0,0.0001274,2]
[420847980,1776631845195,-9988.3222592,0.00012801,2]
[420847981,1776631845205,-1673.1534851,0.00012843,2]
[420847982,1776631845215,-190.59,0.00012846,2]
[420847983,1776631845224,-2500.0,0.00012864,2]
[420847984,1776631845234,-1600.0,0.00012885,2]
[420847985,1776631845244,-162.0,0.00012893,2]
[420847986,1776631845256,-2816.0,0.00012893,2]
[420847987,1776631845265,-2816.0,0.00012893,2]
[420847988,1776631845275,-2005.0,0.000129,2]
[420847989,1776631845285,-2500.0,0.00012912,2]
[420847990,1776631845295,-600.0,0.00012937,2]
[420847991,1776631845304,-273.29,0.00012937,2]
[420847992,1776631845314,-4142.0,0.00012986,2]
[420847993,1776631845324,-254.88463672,0.00012999,2]
[420847994,1776631845334,-114201.73661025,0.00013,2]
[420847995,1776631845348,-234874.3304,0.00013,2]
[420847996,1776631845365,-582.14959,0.00013,2]
[420847997,1776631845377,-17459.38278369,0.00013,2]
[420847998,1776631845387,-2981.28166021,0.00013,2]
[420847999,1776631845401,-10915.79728157,0.00013,2]
[420848000,1776631845413,-6275.55825757,0.00013,2]
[420848001,1776631845429,-9561.50740717,0.00013,2]
[420848002,1776631845441,-339.88265974,0.00013,2]
[420848003,1776631845461,-313.68407968,0.00013,2]
[420848004,1776631845716,-161.0,0.0001017,2]
[420848005,1776631845726,-46966.69507969,0.00013,2]
[420848007,1776631845737,-200.0,0.00013,2]
[420848008,1776631845747,-2742.0,0.00013,2]
[420848009,1776631845757,-1142.38664712,0.0001305,2]
[420848010,1776631845767,-200.0,0.0001313,2]
[420848011,1776631845776,-823.0,0.00013146,2]
[420848012,1776631845786,-3292.0,0.00013146,2]
[420848013,1776631845795,-151.0,0.00013223,2]
[420848014,1776631845804,-599.60298507,0.00013224,2]
[420848015,1776631845814,-695.39793187,0.00013224,2]
[420848016,1776631845823,-1592.87721993,0.00013225,2]
[420848017,1776631845832,-233.51889341,0.00013225,2]
[420848018,1776631845842,-891.61887448,0.00013225,2]
[420848019,1776631845852,-58811.7610273,0.00013226,2]
[420848020,1776631845862,-159.12,0.00013258,2]
[420848021,1776631845872,-200.0,0.00013261,2]
[420848022,1776631845882,-150.0,0.00013263,21]
[420848023,1776631845891,-736.0,0.00013279,2]
[420848024,1776631845901,-1576.0,0.00013354,2]
[420848025,1776631845912,-200.0,0.00013394,2]
[420848026,1776631845921,-1576.0,0.000134,2]
[420848027,1776631845931,-151.0,0.0001341,3]
[420848028,1776631845941,-3000.0,0.00013412,2]
[420848030,1776631845950,-857.07948491,0.00013452,2]
[420848032,1776631845960,-150.0,0.0001347,2]
[420848033,1776631845969,-150.0,0.0001347,2]
[420848034,1776631845978,-5401.102597,0.00013484,2]
[420848035,1776631845988,-6439.77910854,0.00013498,2]
[420848036,1776631845998,-501.0,0.000135,2]
[420848037,1776631846007,-1268.0,0.00013503,3]
[420848038,1776631846018,-200.0,0.00013528,2]
[420848039,1776631846027,-300.0,0.00013537,2]
[420848040,1776631846037,-162.0,0.00013674,2]
[420848041,1776631846046,-500.0,0.00013698,2]
[420848042,1776631846056,-500.0,0.00013698,2]
[420848043,1776631846066,-500.0,0.00013698,2]
[420848044,1776631846075,-500.0,0.00013698,2]
[420848045,1776631846085,-500.0,0.00013698,2]
[420848046,1776631846095,-500.0,0.00013698,2]
[420848047,1776631846104,-500.0,0.00013698,2]
[420848048,1776631846114,-500.0,0.00013698,2]
[420848049,1776631846124,-451.33702453,0.00013698,2]
[420848050,1776631846134,-500.0,0.00013698,2]
[420848051,1776631846143,-500.0,0.00013698,2]
[420848052,1776631846152,-500.0,0.00013698,2]
[420848053,1776631846162,-500.0,0.00013698,2]
[420848054,1776631846171,-500.0,0.00013698,2]
[420848055,1776631846180,-500.0,0.00013698,2]
[420848056,1776631846189,-500.0,0.00013698,2]
[420848057,1776631846199,-500.0,0.00013698,2]
[420848058,1776631846208,-500.0,0.00013698,2]
[420848059,1776631846218,-500.0,0.00013698,2]
[420848060,1776631846229,-500.0,0.00013698,2]
[420848061,1776631846239,-500.0,0.00013698,2]
[420848062,1776631846248,-549.86661205,0.00013698,2]
[420848063,1776631846258,-1711.14,0.00013698,2]
[420848064,1776631846268,-1711.14,0.00013698,2]
[420848065,1776631846278,-1711.14,0.00013698,2]
[420848066,1776631846287,-1711.14,0.00013698,2]
[420848067,1776631846298,-1711.14,0.00013698,2]
[420848068,1776631846309,-1711.14,0.00013698,2]
[420848069,1776631846319,-1711.14,0.00013698,2]
[420848070,1776631846328,-1711.14,0.00013698,2]
[420848071,1776631846337,-1711.14,0.00013698,2]
[420848072,1776631846347,-1711.14,0.00013698,2]
[420848073,1776631846356,-1711.14,0.00013698,2]
[420848074,1776631846365,-1711.14,0.00013698,2]
[420848075,1776631846376,-1711.14,0.00013698,2]
[420848076,1776631846386,-1702.76,0.00013698,2]
[420848077,1776631846396,-1702.76,0.00013698,2]
[420848078,1776631846406,-1702.76,0.00013698,2]
[420848079,1776631846416,-1702.76,0.00013698,2]
[420848080,1776631846426,-1702.76,0.00013698,2]
[420848081,1776631846437,-1702.76,0.00013698,2]
[420848082,1776631846446,-1702.76,0.00013698,2]
[420848083,1776631846456,-1702.76,0.00013698,2]
[420848084,1776631846465,-1702.76,0.00013698,2]
[420848085,1776631846475,-1702.76,0.00013698,2]
[420848086,1776631846484,-1705.25,0.00013698,2]
[420848087,1776631846494,-1705.25,0.00013698,2]
[420848088,1776631846503,-1705.25,0.00013698,2]
[420848089,1776631846513,-1705.25,0.00013698,2]
[420848090,1776631846522,-1705.25,0.00013698,2]
[420848091,1776631846532,-1705.25,0.00013698,2]
[420848092,1776631846541,-1705.25,0.00013698,2]
[420848093,1776631846550,-1705.25,0.00013698,2]
[420848094,1776631846559,-1705.25,0.00013698,2]
[420848095,1776631846569,-1705.25,0.00013698,2]
[420848096,1776631846578,-1705.25,0.00013698,2]
[420848097,1776631846588,-1705.25,0.00013698,2]
[420848099,1776631846597,-1705.25,0.00013698,2]
[420848100,1776631846608,-1902.26,0.00013698,2]
[420848101,1776631846618,-361.21305936,0.00013698,2]
[420848102,1776631846633,-335.18001523,0.00013698,2]
[420848103,1776631846697,-1000.0,0.00012808,2]
[420848105,1776631846724,-96.31638327,0.00012808,2]
[420848106,1776631846733,-453.68361673,0.00013698,2]
[420848107,1776631846749,-420.35104813,0.00013698,2]
[420848108,1776631846779,-192.00153273,0.00013698,2]
[420848109,1776631847649,-2445.59864101,0.00010938,2]
[420848110,1776631847677,-420.82154311,0.0001053,2]
[420848111,1776631847687,-1461.32590093,0.00010938,2]
[420848112,1776631847703,-1823.15391496,0.00010938,2]
[420848113,1776631847712,-139.83072782,0.00013698,2]
[420848114,1776631847721,-1902.26,0.00013698,2]
[420848115,1776631847731,-1902.26,0.00013698,2]
[420848116,1776631847740,-1902.26,0.00013698,2]
[420848117,1776631847750,-1902.26,0.00013698,2]
[420848118,1776631847759,-1902.26,0.00013698,2]
[420848119,1776631847768,-1902.26,0.00013698,2]
[420848120,1776631847777,-1902.26,0.00013698,2]
[420848121,1776631847787,-1902.26,0.00013698,2]
[420848122,1776631847796,-500.0,0.00013698,2]
[420848123,1776631847805,-500.0,0.00013698,2]
[420848124,1776631847814,-500.0,0.00013698,2]
[420848125,1776631847823,-500.0,0.00013698,2]
[420848126,1776631847833,-500.0,0.00013698,2]
[420848127,1776631847843,-500.0,0.00013698,2]
[420848128,1776631847852,-500.0,0.00013698,2]
[420848129,1776631847861,-500.0,0.00013698,2]
[420848130,1776631847871,-500.0,0.00013698,2]
[420848131,1776631847880,-500.0,0.00013698,2]
[420848132,1776631847890,-500.0,0.00013698,2]
[420848133,1776631847899,-500.0,0.00013698,2]
[420848134,1776631847909,-164.91093592,0.00013698,2]
[420848135,1776631847918,-692.73,0.00013698,2]
[420848136,1776631847928,-692.73,0.00013698,2]
[420848137,1776631847938,-692.73,0.00013698,2]
[420848138,1776631847947,-692.73,0.00013698,2]
[420848139,1776631847957,-692.73,0.00013698,2]
[420848140,1776631847966,-692.73,0.00013698,2]
[420848141,1776631847976,-692.73,0.00013698,2]
[420848142,1776631847985,-692.73,0.00013698,2]
[420848143,1776631847995,-692.73,0.00013698,2]
[420848144,1776631848004,-692.73,0.00013698,2]
[420848145,1776631848014,-692.73,0.00013698,2]
[420848146,1776631848023,-692.73,0.00013698,2]
[420848147,1776631848032,-692.73,0.00013698,2]
[420848148,1776631848042,-692.73,0.00013698,2]
[420848149,1776631848051,-1073.21,0.00013698,2]
[420848150,1776631848062,-1073.21,0.00013698,2]
[420848151,1776631848072,-1073.21,0.00013698,2]
[420848152,1776631848081,-1073.21,0.00013698,2]
[420848153,1776631848091,-1073.21,0.00013698,2]
[420848154,1776631848100,-1073.21,0.00013698,2]
[420848155,1776631848110,-1073.21,0.00013698,2]
[420848156,1776631848119,-1073.21,0.00013698,2]
[420848157,1776631848128,-1073.21,0.00013698,2]
[420848158,1776631848138,-1073.21,0.00013698,2]
[420848159,1776631848148,-500.0,0.00013698,2]
[420848160,1776631848157,-500.0,0.00013698,2]
[420848161,1776631848166,-500.0,0.00013698,2]
[420848162,1776631848176,-646.88396234,0.00013698,2]
[420848163,1776631848185,-1154.95,0.00013698,2]
[420848164,1776631848194,-1154.95,0.00013698,2]
[420848165,1776631848204,-1154.95,0.00013698,2]
[420848166,1776631848214,-1154.95,0.00013698,2]
[420848167,1776631848223,-1154.95,0.00013698,2]
[420848168,1776631848232,-1154.95,0.00013698,2]
[420848169,1776631848242,-1154.95,0.00013698,2]
[420848170,1776631848251,-1154.95,0.00013698,2]
[420848171,1776631848260,-1154.95,0.00013698,2]
[420848172,1776631848269,-1154.95,0.00013698,2]
[420848173,1776631848279,-500.0,0.00013698,2]
[420848174,1776631848288,-500.0,0.00013698,2]
[420848175,1776631848297,-500.0,0.00013698,2]
[420848176,1776631848306,-500.0,0.00013698,2]
[420848177,1776631848316,-500.0,0.00013698,2]
[420848178,1776631848325,-500.0,0.00013698,2]
[420848179,1776631848335,-500.0,0.00013698,2]
[420848180,1776631848344,-500.0,0.00013698,2]
[420848181,1776631848353,-500.0,0.00013698,2]
[420848182,1776631848362,-496.8,0.00013698,2]
[420848183,1776631848371,-1202.2,0.00013698,2]
[420848184,1776631848381,-1202.2,0.00013698,2]
[420848185,1776631848390,-1202.2,0.00013698,2]
[420848186,1776631848399,-1202.2,0.00013698,2]
[420848187,1776631848409,-1202.2,0.00013698,2]
[420848188,1776631848419,-1202.2,0.00013698,2]
[420848189,1776631848429,-1202.2,0.00013698,2]
[420848190,1776631848439,-1202.2,0.00013698,2]
[420848191,1776631848449,-1202.2,0.00013698,2]
[420848192,1776631848459,-1202.2,0.00013698,2]
[420848193,1776631848469,-2642.28,0.00013698,2]
[420848194,1776631848478,-2642.28,0.00013698,2]
[420848195,1776631848488,-2642.28,0.00013698,2]
[420848196,1776631848497,-2642.28,0.00013698,2]
[420848197,1776631848506,-2642.28,0.00013698,2]
[420848198,1776631848516,-2642.28,0.00013698,2]
[420848199,1776631848525,-2642.28,0.00013698,2]
[420848200,1776631848535,-2642.28,0.00013698,2]
[420848201,1776631848546,-2642.28,0.00013698,2]
[420848202,1776631848555,-2642.28,0.00013698,2]
[420848203,1776631848565,-500.0,0.00013698,2]
[420848204,1776631848575,-500.0,0.00013698,2]
[420848205,1776631848585,-500.0,0.00013698,2]
[420848206,1776631848597,-500.0,0.00013698,2]
[420848207,1776631848606,-500.0,0.00013698,2]
[420848208,1776631848616,-500.0,0.00013698,2]
[420848209,1776631848627,-610.42438835,0.00013698,2]
[420848210,1776631848636,-2391.68,0.00013698,2]
[420848211,1776631848646,-2391.68,0.00013698,2]
[420848212,1776631848656,-2391.68,0.00013698,2]
[420848213,1776631848665,-2391.68,0.00013698,2]
[420848214,1776631848674,-2391.68,0.00013698,2]
[420848215,1776631848683,-2391.68,0.00013698,2]
[420848216,1776631848692,-2391.68,0.00013698,2]
[420848217,1776631848701,-2391.68,0.00013698,2]
[420848218,1776631848711,-2391.68,0.00013698,2]
[420848219,1776631848721,-2391.68,0.00013698,2]
[420848220,1776631848731,-2391.68,0.00013698,2]
[420848221,1776631848740,-1318.62,0.00013698,2]
[420848222,1776631848750,-1318.62,0.00013698,2]
[420848223,1776631848759,-1318.62,0.00013698,2]
[420848224,1776631848768,-1318.62,0.00013698,2]
[420848225,1776631848778,-1318.62,0.00013698,2]
[420848226,1776631848787,-1318.62,0.00013698,2]
[420848227,1776631848796,-1318.62,0.00013698,2]
[420848228,1776631848806,-1318.62,0.00013698,2]
[420848229,1776631848816,-1318.62,0.00013698,2]
[420848230,1776631848825,-1318.62,0.00013698,2]
[420848231,1776631848835,-1318.62,0.00013698,2]
[420848232,1776631848844,-1318.62,0.00013698,2]
[420848233,1776631848853,-1318.62,0.00013698,2]
[420848234,1776631848862,-1318.62,0.00013698,2]
[420848235,1776631848872,-500.0,0.00013698,2]
[420848236,1776631848881,-500.0,0.00013698,2]
[420848237,1776631848890,-500.0,0.00013698,2]
[420848238,1776631848900,-500.0,0.00013698,2]
[420848239,1776631848909,-500.0,0.00013698,2]
[420848240,1776631848919,-500.0,0.00013698,2]
[420848241,1776631848928,-500.0,0.00013698,2]
[420848242,1776631848938,-500.0,0.00013698,2]
[420848243,1776631848947,-500.0,0.00013698,2]
[420848244,1776631848956,-500.0,0.00013698,2]
[420848245,1776631848965,-500.0,0.00013698,2]
[420848246,1776631848975,-500.0,0.00013698,2]
[420848247,1776631848984,-500.0,0.00013698,2]
[420848248,1776631848993,-500.0,0.00013698,2]
[420848249,1776631849003,-500.0,0.00013698,2]
[420848250,1776631849012,-500.0,0.00013698,2]
[420848251,1776631849023,-500.0,0.00013698,2]
[420848252,1776631849032,-500.0,0.00013698,2]
[420848253,1776631849041,-500.0,0.00013698,2]
[420848254,1776631849051,-500.0,0.00013698,2]
[420848255,1776631849060,-500.0,0.00013698,2]
[420848256,1776631849069,-500.0,0.00013698,2]
[420848257,1776631849079,-500.0,0.00013698,2]
[420848258,1776631849088,-1061.09,0.00013698,2]
[420848259,1776631849097,-500.0,0.00013698,2]
[420848260,1776631849106,-1061.09,0.00013698,2]
[420848261,1776631849115,-1061.09,0.00013698,2]
[420848262,1776631849124,-1061.09,0.00013698,2]
[420848263,1776631849134,-1061.09,0.00013698,2]
[420848264,1776631849144,-1061.09,0.00013698,2]
[420848265,1776631849153,-1061.09,0.00013698,2]
[420848266,1776631849162,-1061.09,0.00013698,2]
[420848267,1776631849171,-1061.09,0.00013698,2]
[420848268,1776631849181,-1061.09,0.00013698,2]
[420848269,1776631849190,-1061.09,0.00013698,2]
[420848270,1776631849199,-1061.09,0.00013698,2]
[420848271,1776631849208,-1061.09,0.00013698,2]
[420848272,1776631849217,-1061.09,0.00013698,2]
[420848273,1776631849227,-500.0,0.00013698,2]
[420848274,1776631849237,-500.0,0.00013698,2]
[420848275,1776631849247,-500.0,0.00013698,2]
[420848276,1776631849256,-500.0,0.00013698,2]
[420848277,1776631849265,-500.0,0.00013698,2]
[420848278,1776631849274,-500.0,0.00013698,2]
[420848279,1776631849283,-500.0,0.00013698,2]
[420848280,1776631849292,-500.0,0.00013698,2]
[420848281,1776631849301,-500.0,0.00013698,2]
[420848282,1776631849311,-500.0,0.00013698,2]
[420848283,1776631849320,-500.0,0.00013698,2]
[420848284,1776631849329,-500.0,0.00013698,2]
[420848285,1776631849339,-500.0,0.00013698,2]
[420848286,1776631849349,-500.0,0.00013698,2]
[420848287,1776631849358,-1394.69,0.00013698,2]
[420848288,1776631849367,-1394.69,0.00013698,2]
[420848289,1776631849376,-1394.69,0.00013698,2]
[420848290,1776631849385,-1394.69,0.00013698,2]
[420848291,1776631849395,-1394.69,0.00013698,2]
[420848292,1776631849404,-500.0,0.00013698,2]
[420848293,1776631849413,-1394.69,0.00013698,2]
[420848294,1776631849422,-500.0,0.00013698,2]
[420848295,1776631849432,-500.0,0.00013698,2]
[420848296,1776631849442,-1394.69,0.00013698,2]
[420848297,1776631849451,-500.0,0.00013698,2]
[420848298,1776631849460,-1394.69,0.00013698,2]
[420848299,1776631849469,-2625.45,0.00013698,2]
[420848300,1776631849478,-500.0,0.00013698,2]
[420848301,1776631849487,-2625.45,0.00013698,2]
[420848302,1776631849496,-1394.69,0.00013698,2]
[420848303,1776631849505,-500.0,0.00013698,2]
[420848304,1776631849514,-2625.45,0.00013698,2]
[420848305,1776631849524,-1394.69,0.00013698,2]
[420848306,1776631849533,-500.0,0.00013698,2]
[420848307,1776631849542,-1394.69,0.00013698,2]
[420848308,1776631849555,-500.0,0.00013698,2]
[420848309,1776631849564,-1394.69,0.00013698,2]
[420848310,1776631849573,-500.0,0.00013698,2]
[420848311,1776631849582,-1394.69,0.00013698,2]
[420848312,1776631849591,-500.0,0.00013698,2]
[420848313,1776631849601,-500.0,0.00013698,2]
[420848314,1776631849611,-500.0,0.00013698,2]
[420848315,1776631849620,-500.0,0.00013698,2]
[420848316,1776631849629,-500.0,0.00013698,2]
[420848317,1776631849638,-500.0,0.00013698,2]
[420848318,1776631849647,-500.0,0.00013698,2]
[420848319,1776631849656,-500.0,0.00013698,2]
[420848320,1776631849666,-500.0,0.00013698,2]
[420848321,1776631849675,-500.0,0.00013698,2]
[420848322,1776631849684,-500.0,0.00013698,2]
[420848323,1776631849693,-166.66,0.00013699,2]
[420848324,1776631849703,-200.0,0.00013699,2]
[420848325,1776631849712,-1199.160622,0.00013699,2]
[420848326,1776631849721,-1199.160622,0.00013699,2]
[420848327,1776631849730,-1199.160622,0.00013699,2]
[420848328,1776631849739,-1199.160622,0.00013699,2]
[420848329,1776631849748,-1199.160622,0.00013699,2]
[420848330,1776631849758,-1199.160622,0.00013699,2]
[420848331,1776631849767,-1199.160622,0.00013699,2]
[420848332,1776631849776,-1199.160622,0.00013699,2]
[420848333,1776631849786,-1199.160622,0.00013699,2]
[420848334,1776631849795,-1199.160622,0.00013699,2]
[420848335,1776631849805,-1199.160622,0.00013699,2]
[420848336,1776631849815,-1199.160622,0.00013699,2]
[420848337,1776631849825,-1199.160622,0.00013699,2]
[420848338,1776631849835,-1199.160622,0.00013699,2]
[420848339,1776631849845,-1199.160622,0.00013699,2]
[420848340,1776631849855,-1199.160622,0.00013699,2]
[420848341,1776631849864,-1199.160622,0.00013699,2]
[420848342,1776631849874,-1199.160622,0.00013699,2]
[420848343,1776631849883,-1199.160622,0.00013699,2]
[420848344,1776631849892,-1199.160629,0.00013699,2]
[420848345,1776631849903,-351.53,0.00013699,2]
[420848346,1776631849914,-292.94,0.00013699,2]
[420848347,1776631849924,-244.12,0.00013699,2]
[420848348,1776631849934,-203.43,0.00013699,2]
[420848349,1776631849944,-169.53,0.00013699,2]
[420848350,1776631849953,-963.937913,0.00013699,2]
[420848351,1776631849964,-963.937913,0.00013699,2]
[420848352,1776631849974,-963.937913,0.00013699,2]
[420848353,1776631849983,-963.937913,0.00013699,2]
[420848354,1776631849993,-963.937913,0.00013699,2]
[420848355,1776631850002,-963.937913,0.00013699,2]
[420848356,1776631850013,-963.937913,0.00013699,2]
[420848357,1776631850023,-963.937913,0.00013699,2]
[420848358,1776631850033,-963.937913,0.00013699,2]
[420848359,1776631850043,-847.66,0.00013699,2]
[420848360,1776631850052,-963.937913,0.00013699,2]
[420848361,1776631850062,-963.937913,0.00013699,2]
[420848362,1776631850072,-963.937913,0.00013699,2]
[420848363,1776631850082,-963.937913,0.00013699,2]
[420848364,1776631850093,-963.937913,0.00013699,2]
[420848365,1776631850103,-963.937913,0.00013699,2]
[420848366,1776631850113,-963.937913,0.00013699,2]
[420848367,1776631850123,-963.937913,0.00013699,2]
[420848368,1776631850132,-963.937913,0.00013699,2]
[420848369,1776631850141,-963.937916,0.00013699,2]
[420848370,1776631850151,-438.440011,0.00013699,2]
[420848371,1776631850160,-438.440011,0.00013699,2]
[420848372,1776631850169,-438.440011,0.00013699,2]
[420848373,1776631850178,-438.440011,0.00013699,2]
[420848374,1776631850187,-438.440011,0.00013699,2]
[420848375,1776631850196,-438.440011,0.00013699,2]
[420848376,1776631850205,-438.440011,0.00013699,2]
[420848377,1776631850216,-438.440011,0.00013699,2]
[420848378,1776631850226,-438.440011,0.00013699,2]
[420848379,1776631850235,-438.440011,0.00013699,2]
[420848380,1776631850245,-438.440011,0.00013699,2]
[420848381,1776631850254,-438.440011,0.00013699,2]
[420848382,1776631850264,-438.440011,0.00013699,2]
[420848383,1776631850273,-438.440011,0.00013699,2]
[420848384,1776631850283,-438.440011,0.00013699,2]
[420848385,1776631850294,-438.440011,0.00013699,2]
[420848386,1776631850303,-438.440011,0.00013699,2]
[420848387,1776631850313,-438.440011,0.00013699,2]
[420848388,1776631850323,-438.440011,0.00013699,2]